Workbook

Sheet Lengte
N1: Rand 1-100 | O1: Rand 1-6 | R1: Ran-1-100 | S1: rand 1-6 1 | U1: random 1-6 2 | W1: nr | X1: Eenheid | Y1: factor
A2: Oefening metriek stelsel | N2: =RANDBETWEEN(0,100) -> 78 | O2: =RANDBETWEEN(1,7) -> 7 | P2: =RANDBETWEEN(1,7) -> 1 | R2: 66 | S2: 3 | T2: 7 | U2: =IF(IF(S2=T2,T2+1,T2)=8,1,IF(S2=T2,T2+1,T2)) -> 7 | W2: 1 | X2: mm | Y2: 0.001
C3: Gegeven | F3: Bereken | N3: 93 | O3: =RANDBETWEEN(1,7) -> 2 | P3: 1 | R3: 79 | S3: 2 | T3: 6 | U3: 6 | W3: 2 | X3: cm | Y3: 0.01
A4: 1 | C4: =R2/10*S2*T2*U2 -> 970.2 | D4: =VLOOKUP(S4,$W$2:$Y$8,2,TRUE) -> cm | E4: = | G4: =VLOOKUP(U4,$W$2:$Y$8,2,TRUE) -> km | H4: =IF(F4="","",IF(F4=M4,"Oke","Ojee")) ->  | I4: 1 | M4: =C4*VLOOKUP(S4,$W$2:$Y$8,3,TRUE)/VLOOKUP(U4,$W$2:$Y$8,3,TRUE) -> 0.009702 | N4: 76 | O4: 1 | P4: 5 | Q4: 0.02205 | R4: 65 | S4: 2 | T4: 7 | U4: 7 | W4: 3 | X4: dm | Y4: 0.1
A5: 2 | C5: =R3/10*S3*T3*U3 -> 568.8 | D5: km | E5: = | G5: =VLOOKUP(U5,$W$2:$Y$8,2,TRUE) -> hm | H5: =IF(F5="","",IF(F5=M5,"Oke","Ojee")) ->  | I5: 2 | M5: 5688 | N5: 82 | O5: 2 | P5: 7 | Q5: 152 | R5: 94 | S5: 7 | T5: 6 | U5: 6 | W5: 4 | X5: m | Y5: 1
A6: 3 | C6: 637 | D6: dm | E6: = | G6: m | I6: 3 | M6: 63.7 | N6: 55 | O6: 5 | P6: 6 | Q6: 33.12 | R6: 81 | S6: 3 | T6: 3 | U6: 4 | W6: 5 | X6: dam | Y6: 10
A7: 4 | C7: 2368.8 | D7: mm | E7: = | G7: dm | I7: 4 | M7: 23.688 | N7: 83 | O7: 2 | P7: 3 | Q7: 36000 | R7: 44 | S7: 1 | T7: 3 | U7: 3 | W7: 6 | X7: hm | Y7: 100
A8: 5 | C8: 291.6 | D8: cm | E8: = | G8: dm | I8: 5 | M8: 29.16 | N8: 42 | O8: 4 | P8: 3 | Q8: 16920 | R8: 51 | S8: 2 | T8: 2 | U8: 3 | W8: 7 | X8: km | Y8: 1000
A9: 6 | C9: 39.6 | D9: m | E9: = | G9: cm | I9: 6 | M9: 3960 | N9: 42 | O9: 7 | P9: 5 | Q9: 0.0015 | R9: 22 | S9: 4 | T9: 2 | U9: 2
A10: 7 | C10: 61.2 | D10: dm | E10: = | G10: km | I10: 7 | M10: 0.00612 | N10: 19 | O10: 1 | P10: 3 | Q10: 12 | R10: 65 | S10: 3 | T10: 7 | U10: 7
A11: 8 | C11: 35.2 | D11: mm | E11: = | G11: dm | I11: 8 | M11: 0.352 | N11: 58 | O11: 7 | P11: 5 | Q11: 0.0017836 | R11: 12 | S11: 1 | T11: 3 | U11: 3
A12: 9 | C12: 955.5 | D12: km | E12: = | G12: dam | I12: 9 | M12: 95550 | N12: 30 | O12: 4 | P12: 3 | Q12: 1425000 | R12: 33 | S12: 7 | T12: 5 | U12: =IF(IF(S12=T12,T12+1,T12)=8,1,IF(S12=T12,T12+1,T12)) -> 5
A13: 10 | C13: 10.8 | D13: dm | E13: = | G13: km | I13: 10 | M13: 0.00108 | N13: 35 | O13: 6 | P13: 4 | Q13: 0.0004165 | R13: 70 | S13: 3 | T13: 7 | U13: =IF(IF(S13=T13,T13+1,T13)=8,1,IF(S13=T13,T13+1,T13)) -> 7
A14: 11 | C14: 577.5 | D14: cm | E14: = | G14: dam | I14: 11 | M14: 0.5775 | N14: 39 | O14: 2 | P14: 3 | Q14: 0.1026 | R14: 90 | S14: 2 | T14: 5 | U14: 5
A15: 12 | C15: 1029 | D15: cm | E15: = | G15: hm | I15: 12 | M15: 0.1029 | N15: 90 | O15: 1 | P15: 5 | Q15: 5.88 | R15: 33 | S15: 2 | T15: 6 | U15: 6
A16: 13 | C16: 450 | D16: km | E16: = | G16: m | I16: 13 | M16: 450000 | N16: 30 | O16: 6 | P16: 7 | Q16: 3360 | R16: 59 | S16: 7 | T16: 4 | U16: 4
A17: 14 | C17: 237.6 | D17: mm | E17: = | G17: m | I17: 14 | M17: 0.2376 | N17: 18 | O17: 4 | P17: 7 | Q17: 24 | R17: 47 | S17: 1 | T17: 4 | U17: 4
A18: 15 | C18: 660.8 | D18: m | E18: = | G18: dam | I18: 15 | M18: 66.08 | N18: 35 | O18: 5 | P18: 7 | Q18: 63.36 | R18: 71 | S18: 4 | T18: 5 | U18: 5
A19: 16 | C19: 75.2 | D19: m | E19: = | G19: mm | I19: 16 | M19: 75200 | N19: 7 | O19: 1 | P19: 6 | Q19: 5.52 | R19: 5 | S19: 4 | T19: 1 | U19: 1
A20: 17 | C20: 710 | D20: cm | E20: = | G20: mm | I20: 17 | M20: 7100 | N20: 37 | O20: 4 | P20: 6 | Q20: 0.08 | R20: 80 | S20: 2 | T20: 1 | U20: 1
A21: 18 | C21: 2 | D21: km | E21: = | G21: cm | I21: 18 | M21: 200000 | N21: 18 | O21: 7 | P21: 2 | Q21: 8.3 | R21: 95 | S21: 7 | T21: 2 | U21: 2
A22: 19 | C22: 16 | D22: mm | E22: = | G22: cm | I22: 19 | M22: 1.6 | N22: 80 | O22: 2 | P22: 5 | Q22: 55 | R22: 48 | S22: 1 | T22: 1 | U22: 2
A23: 20 | C23: 266 | D23: dm | E23: = | G23: km | I23: 20 | M23: 0.0266 | N23: 52 | O23: 4 | P23: 5 | Q23: 237650 | R23: 22 | S23: 3 | T23: 7 | U23: 7
A24: 21 | C24: 9.6 | D24: hm | E24: = | G24: cm | I24: 21 | M24: 96000 | N24: 88 | O24: 7 | P24: 5 | Q24: 5.88 | R24: 75 | S24: 6 | T24: 2 | U24: 2
A25: 22 | C25: 323.4 | D25: dam | E25: = | G25: dm | I25: 22 | M25: 32340 | N25: 76 | O25: 7 | P25: 4 | Q25: 2.25 | R25: 6 | S25: 5 | T25: 3 | U25: 3
A26: 23 | C26: 180 | D26: dam | E26: = | G26: mm | I26: 23 | M26: 1800000 | N26: 78 | O26: 1 | P26: 6 | Q26: 1.176 | R26: 50 | S26: 5 | T26: 1 | U26: 1
A27: 24 | C27: 27 | D27: m | E27: = | G27: dm | I27: 24 | M27: 270 | N27: 10 | O27: 4 | P27: 2 | Q27: 0.001008 | R27: 59 | S27: 4 | T27: 3 | U27: 3
A28: 25 | C28: 25 | D28: m | E28: = | G28: hm | I28: 25 | M28: =C28*VLOOKUP(S28,$W$2:$Y$8,3,TRUE)/VLOOKUP(U28,$W$2:$Y$8,3,TRUE) -> 0.25 | N28: 9 | O28: 6 | P28: 2 | Q28: 864 | R28: 13 | S28: 4 | T28: 6 | U28: 6

Sheet Factor
N1: Rand 1-100 | O1: Rand 1-6 | R1: Ran-1-100 | S1: rand 1-6 1 | U1: random 1-6 2 | W1: nr | X1: Factor | Y1: factor2 | Z1: Eenheid2
A2: Oefening metriek stelsel | N2: =RANDBETWEEN(0,100) -> 14 | O2: =RANDBETWEEN(1,7) -> 4 | P2: =RANDBETWEEN(1,7) -> 5 | R2: 67 | S2: 3 | T2: 5 | U2: =IF(IF(S2=T2,T2+1,T2)=8,1,IF(S2=T2,T2+1,T2)) -> 5 | W2: 1 | X2: n | Y2: =10^-9 -> 1e-09 | Z2: V
C3: Gegeven | F3: Bereken | N3: 56 | O3: =RANDBETWEEN(1,7) -> 1 | P3: 5 | R3: 88 | S3: 6 | T3: 2 | U3: =IF(IF(S3=T3,T3+1,T3)=8,1,IF(S3=T3,T3+1,T3)) -> 2 | W3: 2 | X3: μ | Y3: =10^-6 -> 1e-06 | Z3: A
A4: 1 | C4: =R2/10*S2*T2*U2 -> 502.5 | D4: =CONCATENATE(VLOOKUP(S4,$W$2:$Z$8,2,TRUE),VLOOKUP(U4,$W$2:$Z$8,4,TRUE)) -> μV | E4: = | G4: =CONCATENATE(VLOOKUP(U4,$W$2:$Z$8,2,TRUE),VLOOKUP(U4,$W$2:$Z$8,4,TRUE)) -> nV | H4: =IF(F4="","",IF(F4=M4,"Oke","Ojee")) ->  | I4: 1 | M4: =C4*VLOOKUP(S4,$W$2:$Y$8,3,TRUE)/VLOOKUP(U4,$W$2:$Y$8,3,TRUE) -> 502500 | N4: 24 | O4: 3 | P4: 7 | Q4: 7.92e+19 | R4: 71 | S4: 2 | T4: 1 | U4: 1 | W4: 3 | X4: m | Y4: =10^-3 -> 0.001 | Z4: W
A5: 2 | C5: =R3/10*S3*T3*U3 -> 211.2 | D5: =CONCATENATE(VLOOKUP(S5,$W$2:$Z$8,2,TRUE),VLOOKUP(U5,$W$2:$Z$8,4,TRUE)) -> μW | E5: = | G5: =CONCATENATE(VLOOKUP(U5,$W$2:$Z$8,2,TRUE),VLOOKUP(U5,$W$2:$Z$8,4,TRUE)) -> mW | H5: =IF(F5="","",IF(F5=M5,"Oke","Ojee")) ->  | I5: 2 | M5: =C5*VLOOKUP(S5,$W$2:$Y$8,3,TRUE)/VLOOKUP(U5,$W$2:$Y$8,3,TRUE) -> 0.2112 | N5: 59 | O5: 2 | P5: 7 | Q5: 148800 | R5: 1 | S5: 2 | T5: 2 | U5: 3 | W5: 4 | Y5: =10^0 -> 1 | Z5: g
A6: 3 | C6: 14.2 | D6: μN | E6: = | G6: GN | I6: 3 | M6: 1.42e-14 | N6: 77 | O6: 2 | P6: 1 | Q6: 0.0001813 | R6: 71 | S6: 2 | T6: 7 | U6: 7 | W6: 5 | X6: k | Y6: =10^3 -> 1000 | Z6: J
A7: 4 | C7: 1.2 | D7: GCal | E7: = | G7: MCal | I7: 4 | M7: 1200 | N7: 96 | O7: 6 | P7: 1 | Q7: 1.17e-06 | R7: 93 | S7: 7 | T7: 6 | U7: 6 | W7: 6 | X7: M | Y7: =10^6 -> 1000000 | Z7: Cal
A8: 5 | C8: 695.8 | D8: kW | E8: = | G8: mW | I8: 5 | M8: 695800000 | N8: 44 | O8: 6 | P8: 7 | Q8: 0.465 | R8: 35 | S8: 5 | T8: 3 | U8: 3 | W8: 7 | X8: G | Y8: =10^9 -> 1000000000 | Z8: N
A9: 6 | C9: 2343.6 | D9: mg | E9: = | G9: g | I9: 6 | M9: 2.3436 | N9: 22 | O9: 5 | P9: 3 | Q9: 1.404e-10 | R9: 86 | S9: 3 | T9: 3 | U9: 4
A10: 7 | C10: 157.5 | D10: μCal | E10: = | G10: MCal | I10: 7 | M10: 1.575e-10 | N10: 15 | O10: 4 | P10: 1 | Q10: 24000 | R10: 36 | S10: 2 | T10: 6 | U10: 6
A11: 8 | C11: 309.6 | D11: MN | E11: = | G11: GN | I11: 8 | M11: 0.3096 | N11: 61 | O11: 1 | P11: 7 | Q11: 1058400 | R11: 37 | S11: 6 | T11: 7 | U11: 7
A12: 9 | C12: 259.2 | D12: N | E12: = | G12: GN | I12: 9 | M12: 2.592e-07 | N12: 10 | O12: 1 | P12: 7 | Q12: 1.4e-06 | R12: 82 | S12: 4 | T12: 7 | U12: 7
A13: 10 | C13: 1087.8 | D13: GJ | E13: = | G13: kJ | I13: 10 | M13: 1087800000 | N13: 11 | O13: 7 | P13: 7 | Q13: 9.9e-07 | R13: 34 | S13: 7 | T13: 5 | U13: 5
A14: 11 | C14: 1607.2 | D14: GJ | E14: = | G14: kJ | I14: 11 | M14: 1607200000 | N14: 0 | O14: 6 | P14: 4 | Q14: 6.15e-10 | R14: 20 | S14: 7 | T14: 5 | U14: 5
A15: 12 | C15: 595 | D15: nW | E15: = | G15: mW | I15: 12 | M15: 0.000595 | N15: 44 | O15: 1 | P15: 2 | Q15: 0.47 | R15: 91 | S15: 1 | T15: 3 | U15: 3
A16: 13 | C16: 350 | D16: mCal | E16: = | G16: MCal | I16: 13 | M16: 3.5e-07 | N16: 31 | O16: 6 | P16: 6 | Q16: 1.029 | R16: 54 | S16: 3 | T16: 6 | U16: 6
A17: 14 | C17: 81.9 | D17: mJ | E17: = | G17: kJ | I17: 14 | M17: 8.19e-05 | N17: 8 | O17: 4 | P17: 4 | Q17: 60000000000000 | R17: 96 | S17: 3 | T17: 5 | U17: 5
A18: 15 | C18: 583.2 | D18: ng | E18: = | G18: g | I18: 15 | M18: 5.832e-07 | N18: 75 | O18: 6 | P18: 7 | Q18: 0.1104 | R18: 78 | S18: 1 | T18: 4 | U18: 4
A19: 16 | C19: 720 | D19: mN | E19: = | G19: GN | I19: 16 | M19: 7.2e-10 | N19: 29 | O19: 1 | P19: 7 | Q19: 6300000 | R19: 9 | S19: 3 | T19: 7 | U19: 7
A20: 17 | C20: 124.8 | D20: mV | E20: = | G20: nV | I20: 17 | M20: 124800000 | N20: 87 | O20: 1 | P20: 3 | Q20: 2.72e-07 | R20: 25 | S20: 3 | T20: 1 | U20: 1
A21: 18 | C21: 132.3 | D21: μV | E21: = | G21: nV | I21: 18 | M21: 132300 | N21: 20 | O21: 4 | P21: 5 | Q21: 198000 | R21: 36 | S21: 2 | T21: 1 | U21: 1
A22: 19 | C22: 7.5 | D22: μCal | E22: = | G22: MCal | I22: 19 | M22: 7.5e-12 | N22: 0 | O22: 4 | P22: 5 | Q22: 486000 | R22: 37 | S22: 2 | T22: 6 | U22: 6
A23: 20 | C23: 7.2 | D23: nJ | E23: = | G23: kJ | I23: 20 | M23: 7.2e-12 | N23: 32 | O23: 2 | P23: 5 | Q23: 158400 | R23: 70 | S23: 1 | T23: 5 | U23: 5
A24: 21 | C24: 266.4 | D24: N | E24: = | G24: GN | I24: 21 | M24: 2.664e-07 | N24: 98 | O24: 4 | P24: 3 | Q24: 6e-13 | R24: 86 | S24: 4 | T24: 7 | U24: 7
A25: 22 | C25: 175 | D25: GV | E25: = | G25: nV | I25: 22 | M25: 1.75e+20 | N25: 2 | O25: 7 | P25: 4 | Q25: 4800000 | R25: 50 | S25: 7 | T25: 7 | U25: 1
A26: 23 | C26: 1685.6 | D26: GW | E26: = | G26: mW | I26: 23 | M26: 1685600000000000 | N26: 4 | O26: 7 | P26: 2 | Q26: 3.312e+20 | R26: 61 | S26: 7 | T26: 3 | U26: 3
A27: 24 | C27: 245 | D27: mCal | E27: = | G27: MCal | I27: 24 | M27: 2.45e-07 | N27: 89 | O27: 7 | P27: 7 | Q27: 2.975e-13 | R27: 94 | S27: 3 | T27: 6 | U27: 6
A28: 25 | C28: 384.3 | D28: mV | E28: = | G28: nV | I28: 25 | M28: 384300000 | N28: 78 | O28: 2 | P28: 1 | Q28: 396900000 | R28: 76 | S28: 3 | T28: 1 | U28: 1

Sheet Oppervlakte
N1: Rand 1-100 | O1: Rand 1-6 | R1: Ran-1-100 | S1: rand 1-6 1 | U1: random 1-6 2 | W1: nr | X1: Eenheid | Y1: factor
A2: Oefening metriek stelsel | N2: =RANDBETWEEN(0,100) -> 49 | O2: =RANDBETWEEN(1,7) -> 3 | P2: =RANDBETWEEN(1,6) -> 1 | R2: 77 | S2: 5 | T2: 2 | U2: 6 | W2: 1 | X2: mm² | Y2: 1e-06
C3: Gegeven | F3: Bereken | N3: 36 | O3: =RANDBETWEEN(1,7) -> 3 | P3: =RANDBETWEEN(1,6) -> 5 | R3: 47 | S3: 1 | T3: 5 | U3: 3 | W3: 2 | X3: cm² | Y3: 0.0001
A4: 1 | C4: =R2/10*S2*T2*U2 -> 462 | D4: =VLOOKUP(S4,$W$2:$Y$8,2,TRUE) -> km² | E4: = | G4: =VLOOKUP(U4,$W$2:$Y$8,2,TRUE) -> dm² | H4: =IF(F4="","",IF(F4=M4,"Oke","Ojee")) ->  | I4: 1 | M4: =C4*VLOOKUP(S4,$W$2:$Y$8,3,TRUE)/VLOOKUP(U4,$W$2:$Y$8,3,TRUE) -> 46200000000 | N4: 0 | O4: 7 | P4: 6 | Q4: 213.6 | R4: 19 | S4: 7 | T4: 2 | U4: 3 | W4: 3 | X4: dm² | Y4: 0.01
A5: 2 | C5: =R3/10*S3*T3*U3 -> 70.5 | D5: hm² | E5: = | G5: =VLOOKUP(U5,$W$2:$Y$8,2,TRUE) -> hm² | H5: =IF(F5="","",IF(F5=M5,"Oke","Ojee")) ->  | I5: 2 | M5: =C5*VLOOKUP(S5,$W$2:$Y$8,3,TRUE)/VLOOKUP(U5,$W$2:$Y$8,3,TRUE) -> 70.5 | N5: 66 | O5: 2 | P5: 5 | Q5: 0 | R5: 38 | S5: 6 | T5: 5 | U5: 6 | W5: 4 | X5: m² | Y5: 1
A6: 3 | C6: 79.8 | D6: km² | E6: = | G6: dm² | I6: 3 | M6: 7980000000 | N6: 98 | O6: 5 | P6: 1 | Q6: 0.126 | R6: 73 | S6: 7 | T6: 6 | U6: 3 | W6: 5 | X6: dam² | Y6: 100
A7: 4 | C7: 684 | D7: cm² | E7: = | G7: dm² | I7: 4 | M7: 6.84 | N7: 89 | O7: 3 | P7: 6 | Q7: 588000 | R7: 95 | S7: 2 | T7: 4 | U7: 3 | W7: 6 | X7: hm² | Y7: 10000
A8: 5 | C8: 919.8 | D8: cm² | E8: = | G8: km² | I8: 5 | M8: 9.198e-08 | N8: 31 | O8: 4 | P8: 1 | Q8: 0.372 | R8: 56 | S8: 2 | T8: 2 | U8: 7 | W8: 7 | X8: km² | Y8: 1000000
A9: 6 | C9: 228 | D9: dm² | E9: = | G9: cm² | I9: 6 | M9: 22800 | N9: 53 | O9: 4 | P9: 4 | Q9: 225000000 | R9: 53 | S9: 3 | T9: 5 | U9: 2
A10: 7 | C10: 156.8 | D10: dam² | E10: = | G10: hm² | I10: 7 | M10: 1.568 | N10: 2 | O10: 2 | P10: 2 | Q10: 0.0084 | R10: 60 | S10: 5 | T10: 6 | U10: 6
A11: 8 | C11: 159 | D11: cm² | E11: = | G11: mm² | I11: 8 | M11: 15900 | N11: 95 | O11: 3 | P11: 1 | Q11: 1020000 | R11: 74 | S11: 2 | T11: 5 | U11: 1
A12: 9 | C12: 1080 | D12: dm² | E12: = | G12: m² | I12: 9 | M12: 10.8 | N12: 20 | O12: 2 | P12: 4 | Q12: 10656000 | R12: 94 | S12: 3 | T12: 3 | U12: 4
A13: 10 | C13: 74 | D13: dm² | E13: = | G13: mm² | I13: 10 | M13: 740000 | N13: 38 | O13: 5 | P13: 4 | Q13: 13050000000 | R13: 80 | S13: 3 | T13: 3 | U13: 1
A14: 11 | C14: 338.4 | D14: km² | E14: = | G14: hm² | I14: 11 | M14: 33840 | N14: 34 | O14: 4 | P14: 2 | Q14: 873.6 | R14: 73 | S14: 7 | T14: 2 | U14: 6
A15: 12 | C15: 72 | D15: dam² | E15: = | G15: dam² | I15: 12 | M15: 72 | N15: 31 | O15: 5 | P15: 4 | Q15: 1.89 | R15: 94 | S15: 5 | T15: 2 | U15: 5
A16: 13 | C16: 613.2 | D16: mm² | E16: = | G16: m² | I16: 13 | M16: 0.0006132 | N16: 90 | O16: 5 | P16: 3 | Q16: 0.000756 | R16: 18 | S16: 1 | T16: 3 | U16: 4
A17: 14 | C17: 470 | D17: km² | E17: = | G17: dam² | I17: 14 | M17: 4700000 | N17: 17 | O17: 7 | P17: 2 | Q17: 6800 | R17: 44 | S17: 7 | T17: 5 | U17: 5
A18: 15 | C18: 21.6 | D18: hm² | E18: = | G18: hm² | I18: 15 | M18: 21.6 | N18: 94 | O18: 3 | P18: 4 | Q18: 1.44e-08 | R18: 4 | S18: 6 | T18: 5 | U18: 6
A19: 16 | C19: 770 | D19: cm² | E19: = | G19: cm² | I19: 16 | M19: 770 | N19: 10 | O19: 3 | P19: 5 | Q19: 9120000 | R19: 31 | S19: 2 | T19: 5 | U19: 2
A20: 17 | C20: 72 | D20: hm² | E20: = | G20: m² | I20: 17 | M20: 720000 | N20: 55 | O20: 6 | P20: 4 | Q20: 1.008 | R20: 59 | S20: 6 | T20: 3 | U20: 4
A21: 18 | C21: 62 | D21: mm² | E21: = | G21: hm² | I21: 18 | M21: 6.2e-09 | N21: 1 | O21: 5 | P21: 5 | Q21: 0.00012 | R21: 14 | S21: 1 | T21: 6 | U21: 6
A22: 19 | C22: 424.8 | D22: cm² | E22: = | G22: cm² | I22: 19 | M22: 424.8 | N22: 37 | O22: 2 | P22: 2 | Q22: 10680 | R22: 61 | S22: 2 | T22: 4 | U22: 2
A23: 20 | C23: 50.4 | D23: km² | E23: = | G23: dam² | I23: 20 | M23: 504000 | N23: 71 | O23: 4 | P23: 2 | Q23: 0.01512 | R23: 43 | S23: 7 | T23: 6 | U23: 5
A24: 21 | C24: 97.6 | D24: cm² | E24: = | G24: mm² | I24: 21 | M24: 9760 | N24: 89 | O24: 3 | P24: 5 | Q24: 972000 | R24: 84 | S24: 2 | T24: 6 | U24: 1
A25: 22 | C25: 903 | D25: dm² | E25: = | G25: dam² | I25: 22 | M25: 0.0903 | N25: 2 | O25: 1 | P25: 1 | Q25: 0.03195 | R25: 53 | S25: 3 | T25: 2 | U25: 5
A26: 23 | C26: 100.8 | D26: km² | E26: = | G26: m² | I26: 23 | M26: 100800000 | N26: 25 | O26: 1 | P26: 1 | Q26: 1.53 | R26: 58 | S26: 7 | T26: 3 | U26: 4
A27: 24 | C27: 159 | D27: cm² | E27: = | G27: cm² | I27: 24 | M27: 159 | N27: 28 | O27: 3 | P27: 3 | Q27: 0.81 | R27: 19 | S27: 2 | T27: 1 | U27: 2
A28: 25 | C28: 487.2 | D28: m² | E28: = | G28: dam² | I28: 25 | M28: 4.872 | N28: 30 | O28: 3 | P28: 4 | Q28: 0.02184 | R28: 47 | S28: 4 | T28: 5 | U28: 5

Sheet Volume
N1: Rand 1-100 | O1: Rand 1-6 | R1: Ran-1-100 | S1: rand 1-6 1 | U1: random 1-6 2 | W1: nr | X1: Eenheid | Y1: factor
A2: Oefening metriek stelsel | N2: =RANDBETWEEN(0,100) -> 63 | O2: =RANDBETWEEN(1,7) -> 3 | P2: =RANDBETWEEN(1,6) -> 1 | R2: 98 | S2: 1 | T2: 5 | U2: 4 | W2: 1 | X2: mm³ | Y2: 1e-09
C3: Gegeven | F3: Bereken | N3: 83 | O3: =RANDBETWEEN(1,7) -> 6 | P3: =RANDBETWEEN(1,6) -> 5 | R3: 99 | S3: 2 | T3: 5 | U3: 5 | W3: 2 | X3: cm³ | Y3: 1e-06
A4: 1 | C4: =R2/10*S2*T2*U2 -> 196 | D4: =VLOOKUP(S4,$W$2:$Y$8,2,TRUE) -> mm³ | E4: = | G4: =VLOOKUP(U4,$W$2:$Y$8,2,TRUE) -> dm³ | H4: =IF(F4="","",IF(F4=M4,"Oke","Ojee")) ->  | I4: 1 | M4: =C4*VLOOKUP(S4,$W$2:$Y$8,3,TRUE)/VLOOKUP(U4,$W$2:$Y$8,3,TRUE) -> 0.000196 | N4: 18 | O4: 1 | P4: 4 | Q4: 98.4 | R4: 16 | S4: 1 | T4: 2 | U4: 3 | W4: 3 | X4: dm³ | Y4: 0.001
A5: 2 | C5: =R3/10*S3*T3*U3 -> 495 | D5: dam³ | E5: = | G5: =VLOOKUP(U5,$W$2:$Y$8,2,TRUE) -> m³ | H5: =IF(F5="","",IF(F5=M5,"Oke","Ojee")) ->  | I5: 2 | M5: =C5*VLOOKUP(S5,$W$2:$Y$8,3,TRUE)/VLOOKUP(U5,$W$2:$Y$8,3,TRUE) -> 495000 | N5: 5 | O5: 5 | P5: 4 | Q5: 312000 | R5: 0 | S5: 5 | T5: 1 | U5: 4 | W5: 4 | X5: m³ | Y5: 1
A6: 3 | C6: 9.6 | D6: mm³ | E6: = | G6: dm³ | I6: 3 | M6: 9.6e-06 | N6: 93 | O6: 2 | P6: 5 | Q6: 99000000000 | R6: 49 | S6: 1 | T6: 1 | U6: 3 | W6: 5 | X6: dam³ | Y6: 1000
A7: 4 | C7: 0 | D7: cm³ | E7: = | G7: mm³ | I7: 4 | M7: 0 | N7: 19 | O7: 4 | P7: 6 | Q7: 150000000000 | R7: 5 | S7: 2 | T7: 2 | U7: 1 | W7: 6 | X7: hm³ | Y7: 1000000
A8: 5 | C8: 14.7 | D8: mm³ | E8: = | G8: dm³ | I8: 5 | M8: 1.47e-05 | N8: 22 | O8: 2 | P8: 5 | Q8: 783000 | R8: 70 | S8: 1 | T8: 1 | U8: 3 | W8: 7 | X8: km³ | Y8: 1000000000
A9: 6 | C9: 2 | D9: dam³ | E9: = | G9: dam³ | I9: 6 | M9: 2 | N9: 36 | O9: 1 | P9: 2 | Q9: 0.0168 | R9: 73 | S9: 5 | T9: 1 | U9: 5
A10: 7 | C10: 21 | D10: hm³ | E10: = | G10: dam³ | I10: 7 | M10: 21000 | N10: 43 | O10: 5 | P10: 1 | Q10: 244800000 | R10: 60 | S10: 6 | T10: 4 | U10: 5
A11: 8 | C11: 182.5 | D11: m³ | E11: = | G11: mm³ | I11: 8 | M11: 182500000000 | N11: 45 | O11: 2 | P11: 3 | Q11: 1.04e+20 | R11: 78 | S11: 4 | T11: 1 | U11: 1
A12: 9 | C12: 720 | D12: m³ | E12: = | G12: cm³ | I12: 9 | M12: 720000000 | N12: 36 | O12: 3 | P12: 3 | Q12: 266000 | R12: 79 | S12: 4 | T12: 4 | U12: 2
A13: 10 | C13: 31.2 | D13: cm³ | E13: = | G13: dm³ | I13: 10 | M13: 0.0312 | N13: 38 | O13: 7 | P13: 5 | Q13: 1.568e+14 | R13: 23 | S13: 2 | T13: 5 | U13: 3
A14: 11 | C14: 252.8 | D14: km³ | E14: = | G14: hm³ | I14: 11 | M14: 252800 | N14: 90 | O14: 3 | P14: 3 | Q14: 0.279 | R14: 84 | S14: 7 | T14: 3 | U14: 6
A15: 12 | C15: 69 | D15: m³ | E15: = | G15: dam³ | I15: 12 | M15: 0.069 | N15: 63 | O15: 4 | P15: 6 | Q15: 2.1e-11 | R15: 31 | S15: 4 | T15: 3 | U15: 5
A16: 13 | C16: 1058.4 | D16: mm³ | E16: = | G16: dam³ | I16: 13 | M16: 1.0584e-09 | N16: 57 | O16: 4 | P16: 4 | Q16: 516000 | R16: 97 | S16: 1 | T16: 4 | U16: 5
A17: 14 | C17: 186 | D17: m³ | E17: = | G17: hm³ | I17: 14 | M17: 0.000186 | N17: 65 | O17: 7 | P17: 6 | Q17: 13 | R17: 54 | S17: 4 | T17: 3 | U17: 6
A18: 15 | C18: 194 | D18: hm³ | E18: = | G18: dm³ | I18: 15 | M18: 194000000000 | N18: 6 | O18: 1 | P18: 5 | Q18: 864000 | R18: 30 | S18: 6 | T18: 3 | U18: 3
A19: 16 | C19: 388.8 | D19: km³ | E19: = | G19: cm³ | I19: 16 | M19: 3.888e+17 | N19: 45 | O19: 3 | P19: 4 | Q19: 410400000 | R19: 6 | S19: 7 | T19: 5 | U19: 2
A20: 17 | C20: 162 | D20: dam³ | E20: = | G20: dm³ | I20: 17 | M20: 162000000 | N20: 97 | O20: 4 | P20: 5 | Q20: 48000000 | R20: 9 | S20: 5 | T20: 4 | U20: 3
A21: 18 | C21: 42 | D21: hm³ | E21: = | G21: mm³ | I21: 18 | M21: 4.2e+16 | N21: 77 | O21: 6 | P21: 5 | Q21: 38.4 | R21: 15 | S21: 6 | T21: 2 | U21: 1
A22: 19 | C22: 54 | D22: dam³ | E22: = | G22: mm³ | I22: 19 | M22: 54000000000000 | N22: 73 | O22: 1 | P22: 2 | Q22: 211500000 | R22: 56 | S22: 5 | T22: 5 | U22: 1
A23: 20 | C23: 18 | D23: mm³ | E23: = | G23: cm³ | I23: 20 | M23: 0.018 | N23: 63 | O23: 7 | P23: 2 | Q23: 49 | R23: 89 | S23: 1 | T23: 6 | U23: 2
A24: 21 | C24: 140 | D24: m³ | E24: = | G24: dm³ | I24: 21 | M24: 140000 | N24: 76 | O24: 5 | P24: 4 | Q24: 1.152e+14 | R24: 36 | S24: 4 | T24: 2 | U24: 3
A25: 22 | C25: 106.8 | D25: mm³ | E25: = | G25: mm³ | I25: 22 | M25: 106.8 | N25: 71 | O25: 2 | P25: 6 | Q25: 5.2 | R25: 44 | S25: 1 | T25: 5 | U25: 1
A26: 23 | C26: 86.4 | D26: dam³ | E26: = | G26: mm³ | I26: 23 | M26: 86400000000000 | N26: 60 | O26: 1 | P26: 4 | Q26: 359.1 | R26: 23 | S26: 5 | T26: 3 | U26: 1
A27: 24 | C27: 22 | D27: dam³ | E27: = | G27: hm³ | I27: 24 | M27: 0.022 | N27: 2 | O27: 5 | P27: 2 | Q27: 0.004 | R27: 14 | S27: 5 | T27: 2 | U27: 6
A28: 25 | C28: 34.5 | D28: dam³ | E28: = | G28: cm³ | I28: 25 | M28: 34500000000 | N28: 56 | O28: 7 | P28: 2 | Q28: 0 | R28: 46 | S28: 5 | T28: 6 | U28: 2

Sheet Uitleg 1

Sheet Uitleg 2
A1: Uiteg

Sheet Uitleg met machten
A2: Metriek
A4: De letters van het metriek stelcel staan voor een factor
A5: Vermenigvuldig het getal maal de factor en je komt op de maat van de standaar eenheid.
A7: De wetenschappelijk notatie van de factor zegt iets over hoeveel de komma naar recht of links moet
A10: Kilo | B10: x 1000 | F10: komma drie plaatsen naar rechts
A12: m | B12: x 1/1.000 | F12: komma drie plaatsen naar links
A14: G | B14: x 1.000.000.000 | G14: 1 Gm | H14: = | I14: 1.000.000.000 m
A15: M | B15: x 1.000.000 | G15: 1 Mm | H15: = | I15: 1.000.000 m
A16: k | B16: x 1.000 | G16: 1 km | H16: = | I16: 1000 m
A17: h | B17: x 100
A18: da | B18: x 10 | G18: 1 dam | H18: = | I18: 10 m
A20: d | B20: x 1/10
A21: c | B21: x 1/100
A22: m | B22: x 1/1.000 | G22: 1 mm | H22: = | I22: 0,001 m
A23: μ | B23: x 1/1.000.000 | G23: 1 μm | H23: = | I23: 0,000001 m
A24: n | B24: x 1/1.000.000.000 | G24: 1 nm | H24: = | I24: 0,000000001 m
